{"text_format":"1","workbook":"xlsx","n_sheets":3,"sheets":["التقرير اليومي صفحة 01","التقرير اليومي صفحة 02","ورقة1"],"not_rendered":{"charts":0,"images":0,"macros":1,"external_links":0,"defined_names":10,"comments":2,"pivot_tables":0},"unopened":[],"bounds":{"document_bytes":16777216,"sheet_cells":100000,"rows_first":2000,"rows_last":500,"rows_between":2000,"halvings":0,"cell_chars":16384,"cell_head_chars":4096},"cells_cut":0,"cells_raw":0,"read":"whole","date_system":"1900"}

{"sheet":"التقرير اليومي صفحة 01","index":0,"n_rows":55,"n_cols":13,"rows_kept":55,"cut":false,"hidden":false,"merged":[[38,1,38,2],[38,7,38,8],[40,7,40,8],[47,7,47,8],[40,1,40,2],[41,1,41,2],[42,1,42,2],[47,1,47,2],[43,7,43,8],[44,7,44,8],[45,7,45,8],[46,7,46,8],[38,9,38,10],[40,9,40,10],[41,9,41,10],[42,9,42,10],[47,9,47,10],[39,9,39,10],[38,11,38,12],[40,11,40,12],[41,11,41,12],[42,11,42,12],[47,11,47,12],[43,11,43,12],[44,11,44,12],[45,11,45,12],[39,11,39,12],[48,1,51,12],[53,1,53,3],[54,9,54,10],[53,5,53,7],[39,1,39,2],[43,1,43,2],[44,1,44,2],[41,7,41,8],[42,7,42,8],[45,1,45,2],[43,9,43,10],[44,9,44,10],[45,9,45,10],[46,9,46,10],[46,11,46,12],[39,7,39,8],[35,1,36,3],[19,1,19,3],[27,1,28,3],[29,1,29,12],[30,7,30,9],[31,7,33,9],[30,10,30,12],[31,10,33,12],[20,7,20,8],[21,7,21,8],[22,7,22,8],[23,7,23,8],[28,7,28,8],[20,11,20,12],[21,11,21,12],[22,11,22,12],[0,4,0,9],[1,4,1,9],[2,1,2,4],[3,1,3,4],[4,4,4,8],[30,5,30,6],[31,5,33,6],[30,1,33,4],[2,11,2,12],[2,9,2,10],[23,11,23,12],[24,11,24,12],[28,11,28,12],[7,1,7,7],[7,9,7,12],[6,1,6,3],[15,1,17,12],[24,7,24,8],[6,9,6,10],[4,9,4,10]]}
[null,null,null,null,"الجمهورية الجزائرية الديمقراطية الشعبية "]
[null,null,null,null,"وزارة التربية الوطنيـــة "]
[null,"مديرية التربية لولايـــة الاغواط ",null,null,null,null,null,null,null,"السنة الدراسية ",null,"2019/2020"]
[null,"متوسطة سماعيني معمر تاجرونة "]
[null,null,null,null,"التقرير اليومي للاستشارة ",null,null,null,null,{"$f":"TODAY()","v":"2020-01-23"},null,"جانفي "]
[]
[null,"مواظبـــة الاساتذة "]
[null,"الفترة الصباحيـــــــــــة ",null,null,null,null,null,null,null,"الفترة المسائيــــة "]
[null,"الرقم","الاسم و اللقب","المادة ","9--8","10--9","11--10","12--11",null,"15--14","16--15","17--16","الملاحظات"]
[null,1,"مباركة العابد",null,null,"1م2",null,null,null,"1م3","1م2","2م1"]
[null,2]
[null,3]
[null,4,null,null,null,null,null,null,null,null,null,"2م2"]
[null,5]
[null,6]
[null,"الاجراءات المتخذة :"]
[]
[]
[]
[null,"مواظبة موظفي الاستشارة "]
[null,"الرقم","الاسم و اللقب","مدة التأخير","السبب",null,"الرقم","الاسم و اللقب",null,"صباحا","مساءا","الملاحظات "]
[null,1,"دهكل أحمد",null,null,null,1]
[null,2,null,null,null,null,2]
[null,3,null,null,null,null,3]
[null,4,null,null,null,null,4]
[]
[]
[null,"وجبة الاطعــــــــــام "]
[]
[null,"وجبــة الاطعام اليوميـــــــة "]
[null,"الوجبـــة",null,null,null,"عدد ن/داخلي",null,"الغائبون ",null,null,"الحاضرون"]
[null,null,null,null,null,182,null,40,null,null,{"$f":"F32-$H$32","v":142}]
[]
[]
[]
[null,"مواظبة التلاميذ "]
[]
[]
[null,"المستوى ",null,"المسجلون","ذكــور","إنــاث","الغائبون","نسبة الغياب %",null,"الحاضرون",null,"نسبة الحاضرين %"]
[null,"السنة الاولي متوسط 1",null,22,15,7,0,{"$f":"G40/$D$40","v":0},null,{"$f":"D40-$G$40","v":22},null,{"$f":"J40/$D$40","v":1}]
[null,"السنة الاولي متوسط 2",null,21,12,9,0,{"$f":"G41/$D$41","v":0},null,{"$f":"D41-G41","v":21},null,{"$f":"J41/$D$41","v":1}]
[null,"السنة الاولي متوسط 3",null,23,11,12,0,{"$f":"G42/$D$41","v":0},null,23,null,{"$f":"J42/$D$42","v":1}]
[null,"السنة الثانية متوسط 1",null,31,15,16,0,0,null,{"$f":"D43-G43","v":31},null,{"$f":"J43/$D$43","v":1}]
[null,"السنة الثانية متوسط 2",null,33,17,16,0,0,null,33,null,{"$f":"J44/$D$44","v":1}]
[null,"السنة الثالثة متوسط1",null,28,12,16,0,0,null,28,null,{"$f":"J45/$D$45","v":1}]
[null,"السنة الثالثة متوسط 2",null,27,9,18,0,0,null,27,null,{"$f":"J46/$D$46","v":1}]
[null,"السنة الرابعة متوسط 1",null,{"$f":"E47+F47","v":20},9,11,0,0,null,20,null,{"$f":"J47/$D$47","v":1}]
[null,"السنة الرابعة متوسط 2",null,{"$f":"E48+F48","v":23},11,12,0,0,null,23,null,{"$f":"J48/$D$48","v":1}]
[null,"ملاحظــــات :"]
[]
[]
[]
[]
[null,"منجز من طرف المكلف بالاستشارة ",null,null,"بتاريخ ",{"$f":"TODAY()","v":"2020-01-23"}]
[null,null,null,null,null,null,null,null,null,"مدير المؤسسة "]

{"sheet":"التقرير اليومي صفحة 02","index":1,"n_rows":62,"n_cols":10,"rows_kept":62,"cut":false,"hidden":false,"merged":[[55,0,58,7],[61,6,61,7],[2,0,2,3],[25,0,25,3],[47,0,47,2],[48,0,52,7],[54,0,54,2]]}
[]
[]
["التلاميذ الغائبـــــــــــــون و الاجراءات المتخذة"]
["الرقم","الاسم و اللقب","الصفــة ","مدة الغياب","السبب","التبرير","الاجراء المتخذة","الملاحظات "]
[1,null,"ن/ داخلي",null,null,"مبرر ","الاتصال بالولي للتبرير الغياب"]
[2,null,null,null,null,null,null,null,null,"ن/ داخلي"]
[3,null,null,null,null,null,null,null,null,"خارجي "]
[4]
[5,null,null,null,null,null,null,null,null,"شهادة طبية"]
[6,null,null,null,null,null,null,null,null,"مبرر "]
[7,null,null,null,null,null,null,null,null,"غير مبرر"]
[8,null,null,null,null,"غير مبرر"]
[9,null,null,null,null,null,null,null,null,"حضور الولي للتبرير الغياب"]
[10,null,null,null,null,null,null,null,null,"إحضار ش طبية "]
[11,null,null,null,null,null,null,null,null," ظرف شخصي "]
[12,null,null,null,null,null,null,null,null,"السماح له بزيارة المستشفي "]
[13,null,null,null,null,null,null,null,null,"الاتصال بالولي للتبرير الغياب"]
[14]
[15]
[16]
[17]
[18]
[19]
[]
[]
["مراسلـــة الاوليـــــاء "]
[null,null,null,null,null,null,null,null,null,"1م1"]
["الرقم","اللقب و الاسم","القســم","تاريخ الغياب","الاشعار الاول","الاشعار الثاني","الاعذار المضمون","الملاحظات ",null,"1م2"]
[1,null,null,null,null,null,null,null,null,"1م3"]
[2,null,null,null,null,null,null,null,null,"2م1"]
[3,null,null,null,null,null,null,null,null,"2م2"]
[4,null,null,null,null,null,null,null,null,"3م1"]
[5,null,null,null,null,null,null,null,null,"3م2"]
[6,null,null,null,null,null,null,null,null,"4م1"]
[7,null,null,null,null,null,null,null,null,"4م2"]
[8]
[9]
[10]
[11]
[12]
[13]
[14]
[15]
[16]
[17]
[]
[]
["النشاطات المختلفـــــــة "]
[]
[]
[]
[]
[]
[]
["الملاحظات و الاقتراحات "]
[]
[]
[]
[]
[]
[null,null,null,null,null,"تاجرونة في ",{"$f":"NOW()","v":"2020-01-23T10:39:32.330"}]
[null,null,null,null,null,null,"توقيع المكلف بالاستشارة "]

{"sheet":"ورقة1","index":2,"n_rows":19,"n_cols":11,"rows_kept":19,"cut":false,"hidden":false,"merged":[]}
["الاشهــر",null,"العربية "]
["جانفي ",null,"الفرنسية ",null,"دهكل أحمد",null,"مباركة العابد",null,"2019/2020",null,"1م1"]
["فيفري",null,"الانجليزية ",null,"طيفوري محمد",null,"بوعلام سهلي",null,"2020/2021",null,"1م2"]
["مارس",null,"التربية الاسلامية ",null,"قمقام دربالي",null,"ام الخير تهامي ",null,"2021/2022",null,"1م3"]
["افريل",null,"التربية المدنية ",null,null,null,"خديجة بدراني ",null,null,null,"2م1"]
["ماي",null,"التاريخ والجغرافيا ",null,null,null,"بوشوشة امحمدي",null,null,null,"2م2"]
["جوان",null,"الرياضيات ",null,null,null,"يعقوب كواهي ",null,null,null,"3م1"]
["جويلية ",null,"العلوم /ط",null,null,null,"إبراهيم زريفي ",null,null,null,"4م1"]
["أوت",null,"الفيزياء ",null,null,null,"محمد مشارة "]
["سبتمبر",null,"التربية الفنية ",null,null,null,"شريف بدراني "]
["أكتوبر",null,"التربية الرياضية ",null,null,null,"عبد القادر حساني "]
["نوفمبر",null,null,null,null,null,"قدور بومقواس"]
["ديسمبر",null,null,null,null,null,"العربي قرمان "]
[null,null,null,null,null,null,"عبد القادر طيبي "]
[null,null,null,null,null,null,"ميلود داودي "]
[null,null,null,null,null,null,"رشيدة حطاب"]
[null,null,null,null,null,null,"مجدوب طلحة "]
[null,null,null,null,null,null,"مليود جليد "]
[null,null,null,null,null,null,"البشير قرمان "]